bitfinex-derivatives/quotes_SOLF0:USTF0_20240911
["timestamp","ask_amount","ask_price","bid_price","bid_amount"]
[1726070283609,32.17,131.23,131.12,32.17]
[1726070283913,3.8112,131.2,131.16,3.8122]
[1726070284106,32.17,131.23,131.16,3.8122]
[1726070284305,32.17,131.23,131.12,32.17]
[1726070284507,32.17,131.25,131.14,32.17]
[1726070284805,32.17,131.25,131.15,3.78326549]
[1726070285010,1.4381,131.26,131.2,3.8109]
[1726070285202,1.4381,131.26,131.18,32.17]
[1726070285400,3.81,131.24,131.18,32.17]
[1726070285805,3.81,131.24,131.18,36.00055155]
[1726070286004,1.4381,131.26,131.18,36.00055155]
[1726070286211,3.8101,131.24,131.2,3.8109]
[1726070286917,3.8098,131.25,131.21,3.8107]
[1726070287214,1.4381,131.26,131.2,32.17]
[1726070287414,3.8098,131.25,131.21,3.8108]
[1726070287615,1.4381,131.26,131.18,36.00055155]
[1726070287815,1.4381,131.26,131.18,32.17]
[1726070288111,5.2476,131.26,131.18,32.17]
[1726070288318,5.2476,131.26,131.18,35.97182831]
[1726070288615,1.4381,131.26,131.23,3.81]
[1726070289510,146.63890316,131.35,131.22,32.17]
[1726070289711,2.7877,131.33,131.22,32.17]
[1726070289912,6.52892774,131.33,131.22,35.91923159]
[1726070290208,2.7877,131.33,131.27,32.17]
[1726070290716,6.5951,131.33,131.27,32.17]
[1726070291113,6.5951,131.33,131.29,3.8084]
[1726070291712,2.7877,131.33,131.29,3.8084]
[1726070292114,3.86570229,131.37,131.29,3.8084]
[1726070292315,4.1407,131.36,131.29,3.8084]
[1726070292510,3.8074,131.33,131.29,3.8084]
[1726070293324,3.8074,131.33,131.3,3.8081]
[1726070293621,3.8077,131.32,131.27,32.17]
[1726070293819,7.87955179,131.36,131.27,32.17]
[1726070294820,4.1407,131.36,131.29,32.17]
[1726070295824,4.1407,131.36,131.29,25.6996]
[1726070296034,4.1407,131.36,130.89,50.54220011]
[1726070296035,96.51,131.3,130.89,50.54220011]
[1726070296217,256.74390465,131.29,130.74,68.37216805]
[1726070296417,4.1407,131.36,130.9,6.2894134]
[1726070296418,30.513,131.1,130.9,6.2894134]
[1726070296626,32.17,130.91,130.79,18.8682402]
[1726070296827,32.17,130.94,130.69,3.89235925]
[1726070296828,89.5258092,130.99,130.76,32.17]
[1726070297127,32.17,130.97,130.82,32.17]
[1726070297321,3.8192,130.93,130.84,3.8215]
[1726070297522,55.43580735,130.92,130.84,32.17]
[1726070297832,55.43580735,130.91,130.84,32.17]
[1726070298132,9.55444306,130.86,130.84,52.5]
[1726070298424,52.5,130.97,130.8,53.8311]
[1726070298631,9.55360076,130.86,130.85,52.5]
[1726070298831,14.81580153,130.86,130.85,52.5]
[1726070299025,34.63890316,130.99,130.85,52.5]
[1726070299026,34.63890316,130.99,130.85,95.1224752]
[1726070299221,52.5,131.0,130.86,52.05671553]
[1726070299426,3.73059242,130.99,130.89,3.8199]
[1726070299735,52.5,131.0,130.9,42.60334252]
[1726070299930,52.5,131.0,130.91,47.0016808]
[1726070300126,52.5,131.0,130.92,43.1821808]
[1726070300323,52.5,131.0,130.93,43.1821808]
[1726070300523,52.5,131.0,130.94,43.1821808]
[1726070300724,1.3632,131.04,130.9,9.42920831]
[1726070300725,52.5,131.02,130.95,43.1821808]
[1726070301028,52.5,131.0,130.96,9.2615962]
[1726070301234,52.5,131.0,130.97,4.9367962]
[1726070301533,52.5,131.0,130.98,0.6121962]
[1726070301831,52.5,131.0,130.88,61.92920831]
[1726070302030,52.5,131.0,130.89,13.74687696]
[1726070302228,52.5,131.0,130.9,13.74687696]
[1726070302532,1.3632,131.04,130.91,13.74839639]
[1726070302724,1.3632,131.04,130.92,66.24839639]
[1726070302920,52.5,131.03,130.96,3.8181]
[1726070303131,52.5,131.03,130.92,52.5]
[1726070303532,52.5,131.03,130.98,3.8172]
[1726070303835,1.3632,131.04,130.98,3.8172]
[1726070304138,52.5,131.01,130.88,52.5]
[1726070304332,52.5,131.03,130.92,52.5]
[1726070304634,52.5,131.03,130.93,13.33434593]
[1726070304828,52.5,131.03,130.98,3.8175]
[1726070305548,52.5,131.03,131.0,3.8169]
[1726070305839,1.3632,131.04,130.94,52.5]
[1726070306021,52.5,131.05,130.95,13.32584482]
[1726070306221,52.5,131.05,130.94,52.5]
[1726070306431,52.5,131.05,130.95,13.32532408]
[1726070306631,52.5,131.05,130.94,52.5]
[1726070306835,3.8414541,131.07,130.88,52.5]
[1726070306836,52.5,131.07,130.96,52.5]
[1726070307335,52.5,131.07,131.01,3.8165]
[1726070307541,52.5,131.1,130.98,52.5]
[1726070307742,1.351,131.13,131.08,3.8146]
[1726070308087,1.351,131.13,131.03,52.5]
[1726070308432,1.351,131.13,131.07,3.8146]
[1726070309329,52.5,131.12,131.01,52.5]
[1726070309633,52.5,131.12,131.02,13.30136851]
[1726070310231,52.5,131.12,131.03,13.30136851]
[1726070310424,52.5,131.12,131.01,52.5]
[1726070310631,52.5,131.12,131.02,13.44435925]
[1726070310935,1.351,131.13,131.03,13.44435925]
[1726070311127,5.1644,131.13,131.04,13.44435925]
[1726070311324,5.1644,131.13,131.03,52.5]
[1726070311528,5.1644,131.13,131.07,3.8149]
[1726070312023,5.1644,131.13,131.03,52.5]
[1726070312024,1.351,131.13,131.04,13.44100932]
[1726070312233,1.351,131.13,131.03,52.5]
[1726070312429,1.351,131.13,131.04,13.4389501]
[1726070312430,5.1643,131.13,131.04,13.4389501]
[1726070312628,5.1643,131.13,131.03,52.5]
[1726070312823,52.5,131.14,131.04,13.43941832]
[1726070313030,3.8128,131.15,131.06,52.5]
[1726070313240,52.5,131.17,131.06,52.5]
[1726070313530,52.5,131.17,131.07,8.39694465]
[1726070313729,56.4065333,131.17,131.08,12.21154465]
[1726070313936,3.8137,131.12,131.06,52.5]
[1726070314127,3.8137,131.12,131.07,8.39726766]
[1726070314324,3.8137,131.12,131.06,52.5]
[1726070314631,3.8137,131.12,131.07,8.39725771]
[1726070314830,3.8137,131.12,131.06,52.5]
[1726070315033,3.8129,131.14,131.08,3.8144]
[1726070315435,56.4065333,131.17,131.08,3.8144]
[1726070315939,56.4065333,131.17,131.09,3.8143]
[1726070316835,56.4065333,131.17,131.08,3.8145]
[1726070317025,56.4065333,131.17,131.06,52.5]
[1726070317228,52.5,131.14,131.07,8.39330714]
[1726070317429,52.5,131.14,131.03,13.43254169]
[1726070317630,52.5,131.14,131.04,21.82744495]
[1726070317829,52.5,131.2,131.03,16.78902304]
[1726070317830,52.5,131.16,131.05,74.32744495]
[1726070318026,52.5,131.16,131.06,8.39490326]
[1726070318330,52.5,131.16,131.1,3.8138]
[1726070318331,3.8127,131.15,131.1,3.8138]
[1726070318535,52.5,131.19,131.07,52.5]
[1726070318726,52.5,131.19,131.08,21.80864271]
[1726070318931,2.7108,131.24,131.09,60.88897957]
[1726070319128,52.5,131.21,131.1,8.38897957]
[1726070319327,3.76077283,131.2,131.09,52.5]
[1726070319533,3.76077283,131.2,131.1,8.38564809]
[1726070319534,3.8122,131.17,131.1,8.38564809]
[1726070319833,3.76077283,131.2,131.11,8.38564809]
[1726070320035,3.76077283,131.2,131.09,52.5]
[1726070320229,52.5,131.21,131.1,8.3838356]
[1726070320431,1.3481,131.24,131.11,8.3836258]
[1726070320432,52.5,131.18,131.11,8.3836258]
[1726070320635,3.8129,131.14,131.07,52.5]
[1726070320840,52.5,131.18,131.08,21.80272769]
[1726070321031,52.5,131.18,131.09,8.38542405]
[1726070321232,52.5,131.18,131.12,3.8133]
[1726070321743,52.5,131.18,131.08,13.41485882]
[1726070321933,52.5,131.18,131.09,21.79962534]
[1726070322130,52.5,131.18,131.1,8.38476652]
[1726070322441,52.5,131.18,131.11,8.38476652]
[1726070322634,52.5,131.18,131.08,13.41562568]
[1726070322834,52.5,131.18,131.09,8.38459021]
[1726070323033,52.5,131.18,131.1,8.38459021]
[1726070323238,3.8127,131.15,131.11,8.38540142]
[1726070323439,52.5,131.18,131.07,52.5]
[1726070323638,52.5,131.16,131.08,8.38689036]
[1726070324041,52.5,131.14,131.02,61.88155794]
[1726070324239,52.5,131.14,131.03,38.59308469]
[1726070324442,3.8136,131.12,131.08,3.8144]
[1726070324645,3.8136,131.12,131.09,8.38745164]
[1726070324937,3.8136,131.12,131.08,3.8144]
[1726070325147,3.8136,131.12,131.05,52.5]
[1726070325148,52.5,131.16,131.09,8.38733323]
[1726070325444,52.5,131.16,131.05,52.5]
[1726070325631,52.5,131.16,131.07,52.5]
[1726070325632,3.8131,131.14,131.07,52.5]
[1726070326031,52.5,131.16,131.07,52.5]
[1726070326237,56.37461517,131.21,131.1,52.5]
[1726070326437,52.5,131.21,131.1,52.5]
[1726070326638,3.8121,131.17,131.12,3.8132]
[1726070326838,56.40219713,131.21,131.1,52.5]
[1726070327248,3.8117,131.18,131.14,3.8128]
[1726070327739,3.8115,131.19,131.14,3.8128]
[1726070328334,3.8119,131.18,131.13,3.8131]
[1726070329449,36.13219713,131.21,131.1,32.23]
[1726070329745,3.8119,131.18,131.13,3.813]
[1726070330151,36.13219713,131.21,131.1,32.23]
[1726070330845,36.13219713,131.21,131.16,3.8121]
[1726070330846,39.94329713,131.21,131.16,3.8121]
[1726070331037,36.13219713,131.21,131.1,32.23]
[1726070331434,3.8115,131.19,131.1,32.23]
[1726070331947,3.8118,131.18,131.14,3.8127]
[1726070332246,36.13219713,131.21,131.14,3.8127]
[1726070332445,3.8118,131.18,131.14,3.8127]
[1726070333146,36.13219713,131.21,131.1,32.23]
[1726070333337,3.90219713,131.21,131.12,32.23]
[1726070333540,3.8113,131.2,131.12,32.23]
[1726070333741,34.9541,131.24,131.12,32.23]
[1726070334142,3.8107,131.22,131.17,3.8117]
[1726070334443,34.9541,131.24,131.12,32.23]
[1726070334644,3.8108,131.21,131.17,3.8118]
[1726070334841,34.9541,131.24,131.14,32.23]
[1726070335153,3.8107,131.22,131.18,3.8115]
[1726070335342,1.3481,131.24,131.16,32.23]
[1726070335747,5.1583,131.24,131.19,3.8112]
[1726070335953,1.3481,131.24,131.14,32.23]
[1726070336354,3.811,131.21,131.17,3.8118]
[1726070336655,1.3481,131.24,131.14,32.23]
[1726070336846,3.8116,131.19,131.14,3.8126]
[1726070337151,3.8116,131.19,131.12,32.23]
[1726070337942,3.8117,131.18,131.14,3.8128]
[1726070338545,32.23,131.22,131.08,1.3433]
[1726070338546,3.84187545,131.21,131.08,1.3433]
[1726070338746,32.23,131.19,131.08,5.0753749]
[1726070338952,36.00668138,131.19,131.08,5.0753749]
[1726070339146,3.8125,131.16,131.11,3.8136]
[1726070339549,3.8126,131.15,131.11,3.8136]
[1726070340254,36.00668138,131.19,131.08,1.3433]
[1726070340948,36.00668138,131.19,131.12,3.8134]
[1726070341155,32.23,131.19,131.08,1.3433]
[1726070341353,3.7996796,131.2,131.1,32.23]
[1726070341555,32.23,131.19,131.08,1.3433]
[1726070342658,3.78442291,131.2,131.08,1.3433]
[1726070342857,33.5372,131.21,131.12,32.23]
[1726070342858,1.3072,131.21,131.12,32.23]
[1726070343160,5.07331488,131.21,131.12,32.23]
[1726070343346,1.3072,131.21,131.12,32.23]
[1726070343546,32.23,131.23,131.12,32.23]
[1726070344156,3.8112,131.2,131.17,3.8119]
[1726070344356,3.86070638,131.21,131.12,32.23]
[1726070344557,32.23,131.23,131.12,32.23]
[1726070345657,3.8116,131.19,131.16,3.8122]
[1726070346356,3.8117,131.18,131.13,3.75333689]
[1726070346562,3.8117,131.18,131.15,3.8124]
[1726070347562,3.8115,131.19,131.16,3.8122]
[1726070348261,3.72320951,131.21,131.12,32.23]
[1726070348466,32.23,131.21,131.09,1.3457]
[1726070348655,3.77011669,131.2,131.09,1.3457]
[1726070348857,3.77011669,131.2,131.09,33.5757]
[1726070349064,3.8123,131.17,131.14,3.8128]
[1726070349757,3.8125,131.16,131.09,33.5757]
[1726070349958,3.77011669,131.2,131.08,1.3433]
[1726070349959,32.23,131.18,131.08,1.3433]
[1726070350263,32.23,131.18,131.11,3.8137]
[1726070350462,32.23,131.16,131.08,1.3433]
[1726070351061,32.23,131.19,131.08,1.3433]
[1726070351363,3.812,131.17,131.13,3.813]
[1726070351556,32.23,131.19,131.09,32.23]
[1726070352363,3.8125,131.16,131.09,32.23]
[1726070352766,3.8125,131.16,131.11,3.8135]
[1726070352955,3.8126,131.15,131.11,3.8135]
[1726070353160,32.23,131.19,131.11,3.8135]
[1726070353555,3.8126,131.15,131.11,3.8135]
[1726070353971,32.23,131.19,131.1,3.8139]
[1726070354166,32.23,131.19,131.08,1.3433]
[1726070354368,32.23,131.17,131.08,1.3433]
[1726070354569,32.23,131.17,131.09,3.8141]
[1726070354776,3.8132,131.13,131.09,3.8141]
[1726070355161,32.23,131.19,131.1,3.8139]
[1726070355360,32.23,131.19,131.08,1.3433]
[1726070355562,32.23,131.19,131.11,3.8136]
[1726070355771,32.23,131.19,131.08,1.3433]
[1726070356173,32.23,131.19,131.09,3.8143]
[1726070356576,3.8131,131.14,131.08,1.3433]
[1726070356772,32.23,131.19,131.08,1.3433]
[1726070357070,3.8131,131.14,131.08,1.3433]
[1726070357662,3.8132,131.13,131.08,5.1577]
[1726070357862,32.23,131.19,131.08,1.3433]
[1726070358172,3.8128,131.15,131.1,3.8138]
[1726070359170,3.8129,131.14,131.1,3.8138]
[1726070359579,3.8129,131.14,131.08,1.3433]
[1726070359876,32.23,131.19,131.08,1.3433]
[1726070361065,3.8129,131.14,131.08,1.3433]
[1726070361272,32.23,131.19,131.09,32.23]
[1726070361468,3.88664276,131.2,131.09,32.23]
[1726070361776,3.8121,131.17,131.12,3.8132]
[1726070362072,3.8121,131.17,131.09,32.23]
[1726070362073,33.6514,131.21,131.13,3.8039654]
[1726070362281,37.50228085,131.21,131.09,32.23]
[1726070362475,37.50228085,131.21,131.09,33.5835]
[1726070362667,1.4214,131.21,131.11,32.23]
[1726070363574,3.8115,131.19,131.15,3.8126]
[1726070363771,1.4214,131.21,131.14,3.90962051]
[1726070364075,1.4214,131.21,131.11,32.23]
[1726070364076,5.14908012,131.21,131.11,32.23]
[1726070364272,1.4214,131.21,131.11,32.23]
[1726070364477,3.8119,131.18,131.13,3.8129]
[1726070364673,3.8119,131.18,131.14,3.77039988]
[1726070364875,5.19446987,131.21,131.11,32.23]
[1726070365083,37.42446987,131.21,131.11,32.23]
[1726070365578,3.8123,131.17,131.11,32.23]
[1726070365967,37.42446987,131.21,131.11,32.23]
[1726070366170,3.8121,131.17,131.13,3.813]
[1726070366380,3.8121,131.17,131.13,7.57396407]
[1726070366772,3.8115,131.19,131.13,3.76096407]
[1726070366971,33.6514,131.21,131.11,32.23]
[1726070366972,1.4214,131.21,131.11,32.23]
[1726070367167,1.4214,131.21,131.13,32.23]
[1726070367372,3.8113,131.2,131.16,3.8121]
[1726070367572,3.8113,131.2,131.13,35.95854854]
[1726070367879,1.3481,131.24,131.13,35.95854854]
[1726070368189,1.3481,131.24,131.15,32.23]
[1726070368375,1.3481,131.24,131.16,2.7032]
[1726070369275,3.8107,131.22,131.17,3.8118]
[1726070369787,3.8107,131.22,131.17,3.812]
[1726070370183,1.3481,131.24,131.17,3.812]
[1726070370481,1.3481,131.24,131.16,2.7032]
[1726070371276,3.8113,131.2,131.16,2.7032]
[1726070372180,32.23,131.22,131.16,2.7032]
[1726070372377,33.5781,131.24,131.13,3.72854854]
[1726070372684,3.8111,131.21,131.16,3.8122]
[1726070373480,33.5781,131.24,131.15,3.8125]
[1726070373677,33.5781,131.24,131.14,32.23]
[1726070374386,3.8113,131.2,131.16,3.8122]
[1726070374580,33.5781,131.24,131.14,32.23]
[1726070374783,3.8103,131.23,131.19,3.8113]
[1726070375079,1.3481,131.24,131.16,32.23]
[1726070375279,3.8104,131.23,131.19,3.8114]
[1726070375679,1.3481,131.24,131.17,1.4195]
[1726070375882,3.8107,131.22,131.18,3.8115]
[1726070376182,1.3481,131.24,131.17,1.4195]
[1726070377082,3.8104,131.23,131.19,3.8112]
[1726070377289,1.3779,131.25,131.17,1.4195]
[1726070377584,3.81,131.24,131.2,3.811]
[1726070377973,3.81,131.24,131.18,33.6345]
[1726070378173,32.23,131.31,131.2,32.23]
[1726070378681,32.23,131.31,131.18,39.6345]
[1726070378882,36.00353456,131.31,131.2,3.8109]
[1726070379174,1.0,131.3,131.18,39.6345]
[1726070379486,1.0,131.3,131.21,3.8108]
[1726070379681,32.23,131.29,131.18,39.6345]
[1726070380079,3.8105,131.23,131.19,3.8113]
[1726070380278,3.8105,131.23,131.18,7.4045]
[1726070380683,3.8105,131.23,131.19,3.8112]
[1726070382276,20.12,131.27,131.21,3.8108]
[1726070382476,1.0,131.28,131.21,3.8108]
[1726070382682,1.0,131.28,131.19,20.12]
[1726070382875,3.81,131.24,131.2,3.811]
[1726070383483,3.81,131.24,131.21,3.8108]
[1726070383879,1.0,131.28,131.19,20.12]
[1726070384080,1.0,131.28,131.2,3.811]
[1726070384279,3.8102,131.24,131.2,3.811]
[1726070384779,1.0,131.28,131.21,3.8108]
[1726070384982,3.8101,131.24,131.19,20.12]
[1726070385181,1.0,131.28,131.19,20.12]
[1726070385386,1.0,131.28,131.19,23.9312]
[1726070385581,3.8104,131.23,131.19,23.9312]
[1726070385780,3.8104,131.23,131.19,20.12]
[1726070386282,1.0,131.28,131.21,3.8108]
[1726070386985,3.81,131.25,131.21,3.8108]
[1726070387381,1.0,131.28,131.19,20.12]
[1726070387682,1.0,131.28,131.18,7.4045]
[1726070387683,20.12,131.27,131.18,7.4045]
[1726070387992,1.0,131.28,131.21,3.8106]
[1726070388385,1.0,131.28,131.19,20.12]
[1726070388582,3.8094,131.27,131.23,3.8101]
[1726070388788,1.0,131.28,131.21,20.12]
[1726070388989,3.8093,131.27,131.23,3.81]
[1726070389285,4.0895,131.32,131.21,20.12]
[1726070389485,24.2095,131.32,131.27,6.0]
[1726070390187,3.8088,131.28,131.27,6.0]
[1726070393691,3.8087,131.29,131.27,6.0]
[1726070394197,28.08848868,131.32,131.27,6.0]
[1726070394495,3.8088,131.28,131.27,6.0]
[1726070394696,20.12,131.29,131.19,20.12]
[1726070394893,20.12,131.27,131.19,20.12]
[1726070395588,3.8098,131.25,131.19,20.12]
[1726070396198,3.8098,131.25,131.22,3.8104]
[1726070396592,3.8094,131.26,131.21,20.12]
[1726070397189,20.12,131.29,131.21,20.12]
[1726070397190,3.8092,131.27,131.23,3.81]
[1726070397396,20.12,131.29,131.23,3.81]
[1726070397596,3.8094,131.26,131.23,3.81]
[1726070397796,20.12,131.29,131.23,3.81]
[1726070397998,21.12,131.31,131.24,3.8098]
[1726070398186,3.8094,131.26,131.18,1.4045]
[1726070398496,21.12,131.31,131.21,20.12]
[1726070399090,3.8091,131.27,131.21,20.12]
[1726070399292,3.8091,131.27,131.16,3.74075486]
[1726070399293,20.12,131.27,131.16,3.74075486]
[1726070399494,20.12,131.27,131.16,20.12]
[1726070399692,20.12,131.27,131.17,3.89909305]
[1726070399893,20.12,131.27,131.19,3.8112]
[1726070400398,20.12,131.27,131.17,3.89909305]
[1726070400591,1.403,131.3,131.17,3.89909305]
[1726070400903,3.811,131.21,131.03,249.87]
[1726070401203,3.811,131.21,131.08,1.3168]
[1726070401393,1.403,131.3,131.08,1.3168]
[1726070402597,3.8113,131.2,131.16,3.8122]
[1726070403589,7.6201,131.24,131.08,1.3168]
[1726070403789,1.403,131.3,131.08,1.3168]
[1726070404492,1.0,131.23,131.08,1.3168]
[1726070404695,4.86859365,131.23,131.09,3.77593044]
[1726070405202,3.8131,131.14,131.1,3.8138]
[1726070407401,3.8124,131.16,131.09,3.84037522]
[1726070407603,1.0,131.23,131.08,1.3168]
[1726070407800,3.85774218,131.28,131.09,6.46860123]
[1726070408007,20.12,131.28,131.18,20.12]
[1726070408203,3.7597254,131.27,131.19,1.3421]
[1726070408403,3.8099,131.25,131.2,3.8109]
[1726070408605,3.84477498,131.27,131.2,3.8109]
[1726070408800,1.3053,131.33,131.05,234.631]
[1726070409007,1.3053,131.33,131.14,32.19]
[1726070409008,32.19,131.25,131.14,32.19]
[1726070409207,32.19,131.25,131.14,36.09122044]
[1726070409403,32.19,131.23,131.14,3.90122044]
[1726070409600,1.405,131.26,131.13,6.46390845]
[1726070409806,1.0,131.24,131.14,32.19]
[1726070410009,3.8102,131.23,131.19,3.8111]
[1726070410211,5.31308543,131.26,131.16,32.19]
[1726070410404,5.31308543,131.26,131.13,32.19]
[1726070410623,32.19,131.24,131.14,6.46302986]
[1726070410807,32.19,131.24,131.13,32.19]
[1726070411309,32.19,131.24,131.16,3.812]
[1726070411709,32.19,131.24,131.13,32.19]
[1726070412306,3.8113,131.2,131.16,3.8122]
[1726070412507,32.19,131.24,131.16,3.8122]
[1726070413108,3.8113,131.2,131.16,3.8122]
[1726070413307,3.8113,131.2,131.17,3.812]
[1726070413910,3.811,131.21,131.17,3.812]
[1726070414506,1.0,131.25,131.14,1.3039]
[1726070414710,1.0,131.25,131.17,32.19]
[1726070414916,3.79146016,131.28,131.19,32.19]
[1726070415123,32.19,131.29,131.14,1.3039]
[1726070415124,32.19,131.29,131.17,32.19]
[1726070415315,35.98603507,131.29,131.17,32.19]
[1726070415517,3.8104,131.23,131.19,3.8112]
[1726070415816,1.0,131.28,131.17,32.19]
[1726070416521,32.19,131.26,131.15,33.5969]
[1726070416710,32.19,131.26,131.17,3.812]
[1726070417021,32.19,131.26,131.15,33.5969]
[1726070417613,32.19,131.26,131.16,3.8123]
[1726070417918,1.42,131.25,131.15,33.5969]
[1726070418316,1.42,131.25,131.15,1.4069]
[1726070418514,32.19,131.24,131.15,1.4069]
[1726070419522,3.811,131.21,131.17,3.8119]
[1726070419922,2.42,131.25,131.17,3.8119]
[1726070420122,2.42,131.25,131.15,33.5969]
[1726070420631,3.8113,131.2,131.16,3.8122]
[1726070420832,3.8113,131.2,131.12,3.78070175]
[1726070420833,3.72511513,131.2,131.13,32.19]
[1726070421021,32.19,131.24,131.13,32.19]
[1726070421218,3.8119,131.18,131.13,32.19]
[1726070421825,3.85093785,131.2,131.13,32.19]
[1726070422015,1.0,131.23,131.13,32.19]
[1726070422521,1.0,131.23,131.14,3.8127]
[1726070422721,1.0,131.23,131.13,32.19]
[1726070422921,1.0,131.23,131.14,3.8128]
[1726070422922,3.8119,131.18,131.14,3.8128]
[1726070423127,3.9020295,131.19,131.13,32.19]
[1726070423422,1.0,131.23,131.13,32.19]
[1726070423626,32.19,131.21,131.1,32.19]
[1726070423826,36.04695115,131.21,131.11,6.47799397]
[1726070424033,3.8122,131.17,131.13,3.813]
[1726070424227,36.04695115,131.21,131.13,3.813]
[1726070424420,3.8124,131.16,131.13,3.813]
[1726070425131,3.8124,131.16,131.12,3.8133]
[1726070425328,1.0,131.2,131.11,6.47818057]
[1726070425627,1.0,131.2,131.11,3.8135]
[1726070425827,3.8127,131.15,131.11,3.8135]
[1726070426327,32.19,131.19,131.08,32.19]
[1726070426517,32.19,131.19,131.09,6.48026256]
[1726070426717,32.19,131.19,131.1,38.67026256]
[1726070426917,32.19,131.19,131.1,32.19]
[1726070427120,3.8123,131.16,131.12,3.8134]
[1726070427327,32.19,131.19,131.1,32.19]
[1726070427732,32.19,131.19,131.07,3.9434]
[1726070427938,32.19,131.19,131.08,32.19]
[1726070428142,3.8128,131.15,131.11,3.8137]
[1726070428336,1.0,131.18,131.08,38.66970071]
[1726070428631,3.8124,131.16,131.09,6.47970071]
[1726070429233,1.0,131.18,131.1,6.47970071]
[1726070429427,1.0,131.18,131.08,32.19]
[1726070429428,3.8127,131.15,131.11,3.8136]
[1726070429624,1.0,131.18,131.1,6.47970071]
[1726070429819,1.0,131.18,131.1,32.19]
[1726070430024,1.0,131.18,131.12,32.19]
[1726070430225,1.0,131.18,131.15,20.14]
[1726070430426,20.14,131.27,131.21,3.8108]
[1726070430626,3.8569794,131.28,131.2,20.14]
[1726070430824,21.4698,131.29,131.2,20.14]
[1726070431024,3.8095,131.26,131.22,3.8103]
[1726070431237,25.2196093,131.29,131.2,20.14]
[1726070431830,25.2196093,131.29,131.17,2.7348]
[1726070432030,20.14,131.27,131.18,20.14]
[1726070432833,1.0,131.26,131.18,23.9515]
[1726070433030,1.0,131.26,131.18,20.14]
[1726070433430,1.0,131.26,131.18,23.9516]
[1726070433937,1.0,131.26,131.19,3.8114]
[1726070434128,1.0,131.26,131.18,20.14]
[1726070434637,3.8105,131.23,131.18,20.14]
[1726070434838,1.0,131.26,131.18,20.14]
[1726070435038,3.8105,131.23,131.19,3.8113]
[1726070435535,3.8105,131.23,131.18,20.14]
[1726070435737,3.8101,131.24,131.18,20.14]
[1726070435933,1.0,131.26,131.18,20.14]
[1726070436333,3.8101,131.24,131.2,3.8109]
[1726070436534,1.0,131.26,131.18,20.14]
[1726070437231,1.0,131.26,131.2,3.811]
[1726070437625,1.0,131.26,131.18,20.14]
[1726070437831,3.8101,131.24,131.21,3.8106]
[1726070438027,1.0,131.26,131.18,20.14]
[1726070438743,3.8104,131.23,131.2,3.811]
[1726070439132,1.0,131.26,131.18,20.14]
[1726070439739,21.14,131.26,131.17,2.7348]
[1726070440043,3.8112,131.2,131.17,6.5466]
[1726070440640,7.63475362,131.21,131.17,6.5466]
[1726070441642,3.811,131.21,131.18,3.8116]
[1726070442540,3.8112,131.2,131.17,6.5466]
[1726070444947,21.14,131.26,131.17,2.7348]
[1726070445241,1.0,131.26,131.18,20.14]